fUSD/lending_fUSD_20240331
["ID","MTS","AMOUNT","RATE_DAILY","PERIOD"]
[321164815,1711924256376,-1013.34,0.0005579,120]
[321164816,1711924256386,-5689.0,0.0005579,120]
[321164817,1711924256396,-1178.0,0.0005579,120]
[321164818,1711924256405,-43107.0,0.0005579,120]
[321164819,1711924256414,-237.9,0.0005579,120]
[321164820,1711924256424,-250.867,0.0005579,120]
[321164821,1711924256434,-257.654,0.0005579,120]
[321164822,1711924256444,-851.57418875,0.00055811,2]
[321164823,1711924256453,-219.06,0.00055812,120]
[321164824,1711924256463,-172.52867956,0.00055821,120]
[321164825,1711924256474,-500.0,0.00055821,120]
[321164826,1711924256483,-623.29,0.00055821,120]
[321164827,1711924256494,-535.0979452,0.00055821,120]
[321164828,1711924256505,-548.48112282,0.00055821,120]
[321164829,1711924256515,-500.0,0.00055821,120]
[321164830,1711924256524,-500.0,0.00055821,120]
[321164831,1711924256534,-378.07936634,0.00055821,120]
[321164832,1711924256545,-500.0,0.00055821,2]
[321164833,1711924256555,-500.0,0.00055821,120]
[321164834,1711924256613,-518.91656289,0.00055821,120]
[321164835,1711924256623,-500.0,0.00055821,120]
[321164836,1711924256632,-308.18,0.00055821,120]
[321164837,1711924256641,-199.81,0.00055821,120]
[321164838,1711924256650,-521.69,0.00055821,120]
[321164839,1711924256659,-500.0,0.00055821,120]
[321164840,1711924256668,-500.0,0.00055821,120]
[321164841,1711924256677,-500.0,0.00055821,120]
[321164842,1711924256686,-500.0,0.00055821,120]
[321164843,1711924256695,-500.0,0.00055821,120]
[321164844,1711924256704,-500.0,0.00055821,120]
[321164845,1711924256713,-500.0,0.00055821,120]
[321164846,1711924256722,-500.0,0.00055821,120]
[321164847,1711924256732,-500.0,0.00055821,120]
[321164848,1711924256740,-193.5,0.00055821,120]
[321164849,1711924256749,-500.0,0.00055821,120]
[321164850,1711924256758,-500.0,0.00055821,120]
[321164851,1711924256767,-500.0,0.00055821,120]
[321164852,1711924256776,-500.0,0.00055821,120]
[321164853,1711924256785,-623.15860817,0.00055821,120]
[321164854,1711924256794,-500.0,0.00055821,120]
[321164855,1711924256804,-500.0,0.00055821,120]
[321164856,1711924256813,-500.0,0.00055821,16]
[321164857,1711924256821,-500.0,0.00055821,120]
[321164858,1711924256830,-531.40175565,0.00055821,120]
[321164859,1711924256839,-500.0,0.00055821,120]
[321164860,1711924256848,-500.0,0.00055821,120]
[321164861,1711924256857,-500.0,0.00055821,120]
[321164862,1711924256866,-575.51,0.00055821,120]
[321164863,1711924256875,-500.0,0.00055821,120]
[321164864,1711924256884,-527.20676634,0.00055821,120]
[321164865,1711924256893,-500.0,0.00055821,120]
[321164866,1711924256902,-500.0,0.00055821,120]
[321164867,1711924256911,-500.0,0.00055821,120]
[321164868,1711924256920,-500.0,0.00055821,120]
[321164869,1711924256930,-930.34,0.00055821,120]
[321164870,1711924256939,-638.95,0.00055821,120]
[321164871,1711924256948,-500.0,0.00055821,120]
[321164872,1711924256957,-500.0,0.00055821,120]
[321164873,1711924256966,-500.0,0.00055821,120]
[321164874,1711924256975,-500.0,0.00055821,120]
[321164875,1711924256985,-841.91,0.00055821,120]
[321164876,1711924256993,-578.42,0.00055821,120]
[321164877,1711924257002,-500.0,0.00055821,120]
[321164878,1711924257011,-1490.55,0.00055821,120]
[321164879,1711924257020,-7471.51,0.00055821,120]
[321164880,1711924257030,-500.0,0.00055821,120]
[321164881,1711924257039,-500.0,0.00055821,120]
[321164882,1711924257047,-500.0,0.00055821,120]
[321164883,1711924257056,-500.0,0.00055821,120]
[321164884,1711924257065,-4808.28,0.00055821,120]
[321164885,1711924257074,-500.0,0.00055821,120]
[321164886,1711924257083,-500.0,0.00055821,120]
[321164887,1711924257091,-504.66759034,0.00055821,120]
[321164888,1711924257100,-500.0,0.00055821,120]
[321164889,1711924257109,-500.0,0.00055821,120]
[321164890,1711924257118,-500.0,0.00055821,120]
[321164891,1711924257127,-500.0,0.00055821,120]
[321164892,1711924257136,-500.0,0.00055821,120]
[321164893,1711924257146,-500.0,0.00055821,120]
[321164894,1711924257155,-500.0,0.00055821,120]
[321164895,1711924257164,-153.9,0.00055881,2]
[321164896,1711924257173,-3620.51250213,0.00055887,2]
[321164897,1711924257182,-101919.84261865,0.0005589,36]
[321164898,1711924257191,-500.0,0.0005589,120]
[321164899,1711924257200,-500.0,0.0005589,120]
[321164900,1711924257209,-500.0,0.0005589,120]
[321164901,1711924257218,-500.0,0.0005589,120]
[321164902,1711924257227,-500.0,0.0005589,120]
[321164903,1711924257236,-500.0,0.0005589,120]
[321164904,1711924257245,-500.0,0.0005589,120]
[321164905,1711924257255,-500.0,0.0005589,120]
[321164906,1711924257268,-500.0,0.0005589,120]
[321164907,1711924257277,-500.0,0.0005589,120]
[321164908,1711924257286,-500.0,0.0005589,120]
[321164909,1711924257294,-500.0,0.0005589,120]
[321164910,1711924257303,-500.0,0.0005589,120]
[321164911,1711924257312,-500.0,0.0005589,120]
[321164912,1711924257321,-500.0,0.0005589,120]
[321164913,1711924257331,-500.0,0.0005589,120]
[321164914,1711924257341,-500.0,0.0005589,120]
[321164915,1711924257351,-500.0,0.0005589,120]
[321164916,1711924257359,-203.88660723,0.0005589,120]
[321164917,1711924257368,-465.37,0.0005589,120]
[321164918,1711924257377,-500.0,0.0005589,120]
[321164919,1711924257385,-246.0,0.0005589,120]
[321164920,1711924257394,-508.14,0.0005589,120]
[321164921,1711924257403,-500.0,0.0005589,120]
[321164922,1711924257411,-786.61,0.0005589,120]
[321164923,1711924257420,-500.0,0.0005589,120]
[321164924,1711924257430,-764.28,0.0005589,120]
[321164925,1711924257439,-700.21,0.0005589,120]
[321164926,1711924257447,-771.94,0.0005589,120]
[321164927,1711924257457,-500.0,0.0005589,120]
[321164928,1711924257465,-478.29,0.0005589,120]
[321164929,1711924257474,-500.0,0.0005589,120]
[321164930,1711924257483,-720.09,0.0005589,120]
[321164931,1711924257491,-500.0,0.0005589,120]
[321164932,1711924257500,-500.0,0.0005589,120]
[321164933,1711924257509,-500.0,0.0005589,120]
[321164934,1711924257519,-500.0,0.0005589,120]
[321164935,1711924257529,-150.0,0.0005589,120]
[321164936,1711924257538,-500.0,0.0005589,120]
[321164937,1711924257547,-500.0,0.0005589,120]
[321164938,1711924257557,-500.0,0.0005589,120]
[321164939,1711924257566,-500.0,0.0005589,120]
[321164940,1711924257575,-500.0,0.0005589,120]
[321164941,1711924257585,-500.0,0.0005589,120]
[321164942,1711924257596,-500.0,0.0005589,120]
[321164943,1711924257605,-500.0,0.0005589,120]
[321164944,1711924257615,-500.0,0.0005589,120]
[321164945,1711924257624,-500.0,0.0005589,120]
[321164946,1711924257634,-500.0,0.0005589,120]
[321164947,1711924257643,-289.67,0.0005589,120]
[321164948,1711924257653,-500.0,0.0005589,120]
[321164949,1711924257662,-500.0,0.0005589,120]
[321164950,1711924257671,-500.0,0.0005589,120]
[321164951,1711924257680,-500.0,0.0005589,120]
[321164952,1711924257689,-500.0,0.0005589,120]
[321164953,1711924257697,-500.0,0.0005589,120]
[321164954,1711924257706,-500.0,0.0005589,120]
[321164955,1711924257715,-576.63,0.0005589,120]
[321164956,1711924257724,-500.0,0.0005589,120]
[321164957,1711924257733,-270.85132212,0.0005589,120]
[321164958,1711924257743,-500.0,0.0005589,120]
[321164959,1711924257751,-500.0,0.0005589,120]
[321164960,1711924257760,-500.0,0.0005589,120]
[321164961,1711924257770,-500.0,0.0005589,120]
[321164962,1711924257779,-500.0,0.0005589,120]
[321164963,1711924257789,-500.0,0.0005589,120]
[321164964,1711924257798,-500.0,0.0005589,120]
[321164965,1711924257807,-436.6,0.0005589,120]
[321164966,1711924257816,-500.0,0.0005589,120]
[321164967,1711924257825,-500.0,0.0005589,50]
[321164968,1711924257834,-500.0,0.0005589,120]
[321164969,1711924257844,-648.68,0.0005589,120]
[321164970,1711924257854,-500.0,0.0005589,120]
[321164971,1711924257863,-500.0,0.0005589,120]
[321164972,1711924257872,-500.0,0.0005589,120]
[321164973,1711924257882,-500.0,0.0005589,120]
[321164974,1711924257892,-228.47,0.0005589,120]
[321164975,1711924257901,-500.0,0.0005589,120]
[321164976,1711924257911,-500.0,0.0005589,120]
[321164977,1711924257920,-500.0,0.0005589,120]
[321164978,1711924257929,-500.0,0.0005589,120]
[321164979,1711924257939,-500.0,0.0005589,120]
[321164980,1711924257948,-500.0,0.0005589,120]
[321164981,1711924257957,-500.0,0.0005589,120]
[321164982,1711924257966,-500.0,0.0005589,120]
[321164983,1711924257975,-1303.82,0.0005589,21]
[321164984,1711924257985,-500.0,0.0005589,120]
[321164985,1711924257993,-500.0,0.0005589,120]
[321164986,1711924258003,-500.0,0.0005589,120]
[321164987,1711924258012,-500.0,0.0005589,120]
[321164988,1711924258022,-500.0,0.0005589,120]
[321164989,1711924258031,-500.0,0.0005589,120]
[321164990,1711924258041,-500.0,0.0005589,120]
[321164991,1711924258051,-1040.44,0.0005589,120]
[321164992,1711924258060,-500.0,0.0005589,120]
[321164993,1711924258069,-541.02,0.0005589,120]
[321164994,1711924258079,-500.0,0.0005589,120]
[321164995,1711924258087,-580.99,0.0005589,120]
[321164996,1711924258097,-1141.24,0.0005589,120]
[321164997,1711924258106,-500.0,0.0005589,120]
[321164998,1711924258116,-766.24,0.0005589,120]
[321164999,1711924258125,-500.0,0.0005589,120]
[321165000,1711924258134,-500.0,0.0005589,120]
[321165001,1711924258143,-1403.75,0.0005589,120]
[321165002,1711924258153,-500.0,0.0005589,120]
[321165003,1711924258162,-500.0,0.0005589,120]
[321165004,1711924258171,-795.07,0.0005589,120]
[321165005,1711924258180,-5099.59,0.0005589,120]
[321165006,1711924258190,-1957.28,0.0005589,120]
[321165007,1711924258199,-1324.02,0.0005589,120]
[321165008,1711924258209,-500.0,0.0005589,120]
[321165009,1711924258219,-500.0,0.0005589,120]
[321165010,1711924258228,-1772.6,0.0005589,120]
[321165011,1711924258238,-2163.38,0.0005589,120]
[321165012,1711924258247,-534.64,0.0005589,120]
[321165013,1711924258258,-581.42,0.0005589,120]
[321165014,1711924258270,-535.12,0.0005589,120]
[321165015,1711924258280,-500.0,0.0005589,120]
[321165016,1711924258289,-500.0,0.0005589,120]
[321165017,1711924258299,-500.0,0.0005589,120]
[321165018,1711924258310,-500.0,0.0005589,120]
[321165019,1711924258320,-664.31,0.0005589,120]
[321165020,1711924258329,-500.0,0.0005589,120]
[321165021,1711924258341,-1309.55,0.0005589,120]
[321165022,1711924258352,-500.0,0.0005589,120]
[321165023,1711924258361,-1806.48,0.0005589,120]
[321165024,1711924258371,-3907.26,0.0005589,120]
[321165025,1711924258381,-1823.73,0.0005589,120]
[321165026,1711924258390,-567.5,0.0005589,120]
[321165027,1711924258399,-500.82,0.0005589,120]
[321165028,1711924258409,-500.0,0.0005589,120]
[321165029,1711924258418,-1061.12,0.0005589,120]
[321165030,1711924258428,-509.53,0.0005589,120]
[321165031,1711924258437,-886.2,0.0005589,120]
[321165032,1711924258448,-3184.23,0.0005589,120]
[321165033,1711924258458,-500.0,0.0005589,120]
[321165034,1711924258468,-522.00416787,0.0005589,120]
[321165035,1711924258477,-500.0,0.0005589,120]
[321165036,1711924258487,-610.9,0.0005589,120]
[321165037,1711924258498,-1655.19,0.0005589,120]
[321165038,1711924258507,-784.12,0.0005589,120]
[321165039,1711924258518,-696.69,0.0005589,120]
[321165040,1711924258527,-500.0,0.0005589,120]
[321165041,1711924258538,-500.0,0.0005589,120]
[321165042,1711924258548,-3467.32,0.0005589,120]
[321165043,1711924258558,-500.0,0.0005589,120]
[321165044,1711924258567,-1098.91,0.0005589,120]
[321165045,1711924258576,-500.0,0.0005589,120]
[321165046,1711924258585,-1089.33,0.0005589,120]
[321165047,1711924258595,-2319.8,0.0005589,120]
[321165048,1711924258606,-3650.34,0.0005589,120]
[321165049,1711924258617,-542.33,0.0005589,120]
[321165050,1711924258626,-500.0,0.0005589,120]
[321165051,1711924258635,-500.0,0.0005589,120]
[321165052,1711924258646,-5040.85,0.0005589,120]
[321165053,1711924258656,-2605.58,0.0005589,120]
[321165054,1711924258665,-500.0,0.0005589,120]
[321165055,1711924258675,-641.15,0.0005589,120]
[321165056,1711924258686,-500.0,0.0005589,120]
[321165057,1711924258695,-500.0,0.0005589,7]
[321165058,1711924258705,-500.0,0.0005589,120]
[321165059,1711924258715,-1780.24,0.0005589,120]
[321165060,1711924258725,-1067.54,0.0005589,120]
[321165061,1711924258735,-500.0,0.0005589,120]
[321165062,1711924258744,-500.0,0.0005589,120]
[321165063,1711924258754,-902.43,0.0005589,120]
[321165064,1711924258764,-500.0,0.0005589,120]
[321165065,1711924258773,-500.0,0.0005589,120]
[321165066,1711924258784,-1199.44,0.0005589,120]
[321165067,1711924258793,-165.94,0.0005589,120]
[321165068,1711924258804,-5244.39,0.0005589,120]
[321165069,1711924258814,-1210.92,0.0005589,120]
[321165070,1711924258823,-2624.27,0.0005589,120]
[321165071,1711924258832,-657.95,0.0005589,120]
[321165072,1711924258842,-521.13,0.0005589,120]
[321165073,1711924258851,-500.0,0.0005589,120]
[321165074,1711924258861,-722.28,0.0005589,120]
[321165075,1711924258872,-566.6,0.0005589,120]
[321165076,1711924258881,-500.0,0.0005589,120]
[321165077,1711924258890,-1155.8,0.0005589,120]
[321165078,1711924258900,-562.99,0.0005589,120]
[321165079,1711924258909,-4517.41,0.0005589,120]
[321165080,1711924258919,-522.38,0.0005589,120]
[321165081,1711924258929,-500.0,0.0005589,120]
[321165082,1711924258940,-1492.32,0.0005589,120]
[321165083,1711924258949,-500.0,0.0005589,120]
[321165084,1711924258959,-3459.99,0.0005589,120]
[321165085,1711924258968,-1455.85,0.0005589,120]
[321165086,1711924258977,-1246.91,0.0005589,120]
[321165087,1711924258987,-500.0,0.0005589,120]
[321165088,1711924258996,-2798.33,0.0005589,120]
[321165089,1711924259005,-500.0,0.0005589,120]
[321165090,1711924259015,-500.0,0.0005589,120]
[321165091,1711924259024,-826.1,0.0005589,120]
[321165092,1711924259033,-500.0,0.0005589,120]
[321165093,1711924259043,-7447.4,0.0005589,120]
[321165094,1711924259052,-500.0,0.0005589,120]
[321165095,1711924259062,-500.0,0.0005589,120]
[321165096,1711924259071,-9743.4,0.0005589,120]
[321165097,1711924259082,-544.91780036,0.0005589,120]
[321165098,1711924259091,-500.0,0.0005589,120]
[321165099,1711924259100,-500.0,0.0005589,120]
[321165100,1711924259109,-150.5,0.00056065,15]
[321165101,1711924259118,-150.5,0.00056075,15]
[321165102,1711924259128,-150.5,0.00056085,15]
[321165103,1711924259137,-502.6,0.00056095,120]
[321165104,1711924259146,-500.0,0.00056095,120]
[321165105,1711924259155,-500.0,0.00056095,2]
[321165106,1711924259164,-373.67083546,0.00056095,120]
[321165107,1711924259174,-500.0,0.00056095,120]
[321165108,1711924259183,-500.0,0.00056095,120]
[321165109,1711924259195,-500.0,0.00056095,120]
[321165110,1711924259204,-500.0,0.00056095,120]
[321165111,1711924259213,-152.99,0.00056095,120]
[321165112,1711924259223,-500.0,0.00056095,120]
[321165113,1711924259233,-187.21,0.00056095,120]
[321165114,1711924259242,-500.0,0.00056095,120]
[321165115,1711924259251,-500.0,0.00056095,120]
[321165116,1711924259263,-528.9,0.00056095,120]
[321165117,1711924259274,-589.25,0.00056095,120]
[321165118,1711924259283,-500.0,0.00056095,120]
[321165119,1711924259293,-500.0,0.00056095,120]
[321165120,1711924259303,-500.0,0.00056095,16]
[321165121,1711924259313,-500.0,0.00056095,120]
[321165122,1711924259323,-500.0,0.00056095,120]
[321165123,1711924259333,-500.0,0.00056095,120]
[321165124,1711924259345,-500.0,0.00056095,120]
[321165125,1711924259355,-500.0,0.00056095,120]
[321165126,1711924259364,-930.34,0.00056095,120]
[321165127,1711924259375,-638.95,0.00056095,120]
[321165128,1711924259394,-500.0,0.00056095,120]
[321165129,1711924259404,-500.0,0.00056095,120]
[321165130,1711924259413,-500.0,0.00056095,120]
[321165131,1711924259423,-500.0,0.00056095,120]
[321165132,1711924259432,-841.91,0.00056095,120]
[321165133,1711924259443,-578.42,0.00056095,120]
[321165134,1711924259454,-500.0,0.00056095,120]
[321165135,1711924259463,-1490.55,0.00056095,120]
[321165136,1711924259475,-7471.51,0.00056095,120]
[321165137,1711924259486,-500.0,0.00056095,120]
[321165138,1711924259495,-500.0,0.00056095,120]
[321165139,1711924259504,-500.0,0.00056095,120]
[321165140,1711924259515,-500.0,0.00056095,120]
[321165141,1711924259526,-4808.28,0.00056095,120]
[321165142,1711924259535,-500.0,0.00056095,120]
[321165143,1711924259545,-500.0,0.00056095,120]
[321165144,1711924259556,-500.0,0.00056095,120]
[321165145,1711924259565,-500.0,0.00056095,120]
[321165146,1711924259574,-500.0,0.00056095,120]
[321165147,1711924259584,-500.0,0.00056095,120]
[321165148,1711924259593,-500.0,0.00056095,120]
[321165149,1711924259603,-500.0,0.00056095,120]
[321165150,1711924259614,-500.0,0.00056095,120]
[321165151,1711924259623,-870.02,0.00056163,120]
[321165152,1711924259633,-254.23696409,0.00056164,120]
[321165153,1711924259642,-500.0,0.00056164,120]
[321165154,1711924259653,-500.0,0.00056164,120]
[321165155,1711924259662,-500.0,0.00056164,120]
[321165156,1711924259671,-500.0,0.00056164,120]
[321165157,1711924259681,-500.0,0.00056164,120]
[321165158,1711924259690,-500.0,0.00056164,120]
[321165159,1711924259700,-500.0,0.00056164,120]
[321165160,1711924259709,-500.0,0.00056164,120]
[321165161,1711924259719,-500.0,0.00056164,120]
[321165162,1711924259729,-500.0,0.00056164,120]
[321165163,1711924259739,-500.0,0.00056164,120]
[321165164,1711924259748,-500.0,0.00056164,120]
[321165165,1711924259758,-500.0,0.00056164,120]
[321165166,1711924259767,-500.0,0.00056164,120]
[321165167,1711924259777,-500.0,0.00056164,120]
[321165168,1711924259787,-500.0,0.00056164,120]
[321165169,1711924259796,-500.0,0.00056164,120]
[321165170,1711924259808,-500.0,0.00056164,120]
[321165171,1711924259817,-508.14,0.00056164,120]
[321165172,1711924259827,-500.0,0.00056164,120]
[321165173,1711924259837,-786.61,0.00056164,120]
[321165174,1711924259847,-543.20759805,0.00056164,120]
[321165175,1711924259856,-764.28,0.00056164,120]
[321165176,1711924259866,-700.21,0.00056164,120]
[321165177,1711924259875,-771.94,0.00056164,120]
[321165178,1711924259884,-500.0,0.00056164,120]
[321165179,1711924259894,-500.0,0.00056164,120]
[321165180,1711924259903,-720.09,0.00056164,120]
[321165181,1711924259913,-633.78739878,0.00056164,120]
[321165182,1711924259922,-466.76172989,0.00056164,120]
[321165183,1711924259931,-500.0,0.00056164,120]
[321165184,1711924259940,-500.0,0.00056164,120]
[321165185,1711924259949,-215.91,0.00056164,120]
[321165186,1711924259958,-500.0,0.00056164,120]
[321165187,1711924259968,-500.0,0.00056164,120]
[321165188,1711924259979,-500.0,0.00056164,120]
[321165189,1711924259989,-500.0,0.00056164,120]
[321165190,1711924259999,-500.0,0.00056164,120]
[321165191,1711924260010,-465.27,0.00056164,120]
[321165192,1711924260020,-500.0,0.00056164,120]
[321165193,1711924260031,-500.0,0.00056164,120]
[321165194,1711924260040,-500.0,0.00056164,120]
[321165195,1711924260049,-500.0,0.00056164,120]
[321165196,1711924260059,-500.0,0.00056164,120]
[321165197,1711924260068,-500.0,0.00056164,120]
[321165198,1711924260078,-500.0,0.00056164,120]
[321165199,1711924260087,-500.0,0.00056164,120]
[321165200,1711924260096,-500.0,0.00056164,120]
[321165201,1711924260106,-500.0,0.00056164,120]
[321165202,1711924260115,-500.0,0.00056164,120]
[321165203,1711924260271,-500.0,0.00056164,120]
[321165204,1711924260282,-576.63,0.00056164,120]
[321165205,1711924260291,-500.0,0.00056164,120]
[321165206,1711924260302,-500.0,0.00056164,120]
[321165207,1711924260311,-500.0,0.00056164,120]
[321165208,1711924260320,-500.0,0.00056164,120]
[321165209,1711924260330,-500.0,0.00056164,120]
[321165210,1711924260342,-500.0,0.00056164,120]
[321165211,1711924260351,-500.0,0.00056164,120]
[321165212,1711924260360,-500.0,0.00056164,120]
[321165213,1711924260370,-360.23,0.00056164,120]
[321165214,1711924260379,-500.0,0.00056164,50]
[321165215,1711924260390,-500.0,0.00056164,120]
[321165216,1711924260401,-648.68,0.00056164,120]
[321165217,1711924260411,-500.0,0.00056164,120]
[321165218,1711924260421,-500.0,0.00056164,120]
[321165219,1711924260430,-500.0,0.00056164,120]
[321165220,1711924260439,-513.37,0.00056164,120]
[321165221,1711924260449,-634.09,0.00056164,120]
[321165222,1711924260457,-500.0,0.00056164,120]
[321165223,1711924260467,-552.53,0.00056164,120]
[321165224,1711924260476,-500.0,0.00056164,120]
[321165225,1711924260486,-500.0,0.00056164,120]
[321165226,1711924260495,-573.07,0.00056164,120]
[321165227,1711924260504,-500.0,0.00056164,120]
[321165228,1711924260513,-500.0,0.00056164,120]
[321165229,1711924260522,-1303.82,0.00056164,21]
[321165230,1711924260532,-500.0,0.00056164,120]
[321165231,1711924260543,-500.0,0.00056164,120]
[321165232,1711924260553,-440.54,0.00056164,120]
[321165233,1711924260562,-500.0,0.00056164,120]
[321165234,1711924260571,-500.0,0.00056164,120]
[321165235,1711924260581,-500.0,0.00056164,120]
[321165236,1711924260590,-614.57,0.00056164,120]
[321165237,1711924260599,-1040.44,0.00056164,120]
[321165238,1711924260608,-500.0,0.00056164,120]
[321165239,1711924260619,-541.02,0.00056164,120]
[321165240,1711924260628,-500.0,0.00056164,120]
[321165241,1711924260638,-580.99,0.00056164,120]
[321165242,1711924260648,-1141.24,0.00056164,120]
[321165243,1711924260658,-500.0,0.00056164,120]
[321165244,1711924260667,-766.24,0.00056164,120]
[321165245,1711924260676,-500.0,0.00056164,120]
[321165246,1711924260686,-476.74,0.00056164,120]
[321165247,1711924260695,-1403.75,0.00056164,120]
[321165248,1711924260704,-589.42,0.00056164,120]
[321165249,1711924260713,-500.0,0.00056164,120]
[321165250,1711924260722,-795.07,0.00056164,120]
[321165251,1711924260731,-5099.59,0.00056164,120]
[321165252,1711924260739,-1957.28,0.00056164,120]
[321165253,1711924260749,-1324.02,0.00056164,120]
[321165254,1711924260758,-500.0,0.00056164,120]
[321165255,1711924260767,-340.96,0.00056164,120]
[321165256,1711924260777,-1772.6,0.00056164,120]
[321165257,1711924260786,-2163.38,0.00056164,120]
[321165258,1711924260795,-534.64,0.00056164,120]
[321165259,1711924260805,-535.12,0.00056164,120]
[321165260,1711924260815,-175.16343517,0.00056164,120]
[321165261,1711924260824,-510.84,0.00056164,120]
[321165262,1711924260834,-314.58,0.00056164,120]
[321165263,1711924260843,-500.0,0.00056164,120]
[321165264,1711924260853,-664.31,0.00056164,120]
[321165265,1711924260862,-500.0,0.00056164,120]
[321165266,1711924260871,-1309.55,0.00056164,120]
[321165267,1711924260881,-500.0,0.00056164,120]
[321165268,1711924260890,-1806.48,0.00056164,120]
[321165269,1711924260899,-3907.26,0.00056164,120]
[321165270,1711924260909,-1823.73,0.00056164,120]
[321165271,1711924260918,-567.5,0.00056164,120]
[321165272,1711924260928,-500.82,0.00056164,120]
[321165273,1711924260937,-500.0,0.00056164,120]
[321165274,1711924260946,-1061.12,0.00056164,120]
[321165275,1711924260955,-509.53,0.00056164,120]
[321165276,1711924260965,-3184.23,0.00056164,120]
[321165277,1711924260974,-886.2,0.00056164,120]
[321165278,1711924260984,-500.0,0.00056164,120]
[321165279,1711924260993,-500.0,0.00056164,120]
[321165280,1711924261002,-610.9,0.00056164,120]
[321165281,1711924261011,-784.12,0.00056164,120]
[321165282,1711924261020,-1655.19,0.00056164,120]
[321165283,1711924261029,-696.69,0.00056164,120]
[321165284,1711924261039,-500.0,0.00056164,120]
[321165285,1711924261049,-500.0,0.00056164,120]
[321165286,1711924261064,-3467.32,0.00056164,120]
[321165287,1711924261073,-500.0,0.00056164,120]
[321165288,1711924261083,-1098.91,0.00056164,120]
[321165289,1711924261092,-500.0,0.00056164,120]
[321165290,1711924261102,-1089.33,0.00056164,120]
[321165291,1711924261111,-2319.8,0.00056164,120]
[321165292,1711924261120,-3650.34,0.00056164,120]
[321165293,1711924261130,-542.33,0.00056164,120]
[321165294,1711924261139,-500.0,0.00056164,120]
[321165295,1711924261148,-500.0,0.00056164,120]
[321165296,1711924261157,-5040.85,0.00056164,120]
[321165297,1711924261166,-2605.58,0.00056164,120]
[321165298,1711924261176,-500.0,0.00056164,120]
[321165299,1711924261185,-641.15,0.00056164,120]
[321165300,1711924261194,-500.0,0.00056164,120]
[321165301,1711924261204,-500.0,0.00056164,7]
[321165302,1711924261213,-500.0,0.00056164,120]
[321165303,1711924261223,-1780.24,0.00056164,120]
[321165304,1711924261232,-1067.54,0.00056164,120]
[321165305,1711924261241,-500.0,0.00056164,120]
[321165306,1711924261252,-500.0,0.00056164,120]
[321165307,1711924261265,-902.43,0.00056164,120]
[321165308,1711924261275,-500.0,0.00056164,120]
[321165309,1711924261284,-500.0,0.00056164,120]
[321165310,1711924261294,-1199.44,0.00056164,120]
[321165311,1711924261308,-5244.39,0.00056164,120]
[321165312,1711924261317,-1210.92,0.00056164,120]
[321165313,1711924261327,-2624.27,0.00056164,120]
[321165314,1711924261336,-657.95,0.00056164,120]